Cogmind - Beta 14 @@@ ROGUE MODE // 2024.08.23 @ 11:58:07 Player: cabin Result: Destroyed by Y-45 Defender with Beam Rifle Performance ------------- Evolutions (1) 500 Regions Visited (2) 400 Robots Destroyed (7) 35 Value Destroyed (249) 249 Prototype IDs (0) 0 Alien Tech Used (0) 0 Bonus (0) 0 TOTAL SCORE: 1184 Bonus ------- None Cogmind --------- Core Integrity 0/400 Matter 198/300 Energy 334/400 System Corruption 0% Temperature Cool (9) Movement Core (150) Ox2 Location -9/Materials Parts ------- > --- POWER (1) -------- Ion Engine > --- PROPULSION (2) --- (None) > --- UTILITY (2) ------ Medium Battery Terrain Scan Processor > --- WEAPON (4) ------- (None) > --- INVENTORY (5) ---- Flight Unit Small Storage Unit Peak State ------------ > --- POWER ------------ Ion Engine > --- PROPULSION ------- Aluminum Leg Aluminum Leg > --- UTILITY ---------- Heat Sink Small Storage Unit > --- WEAPON ----------- Assault Rifle Grenade Launcher > --- INVENTORY -------- Light Assault Rifle [Rating: 7] Favorites ----------- Power Ion Engine Engine Ion Engine Propulsion Aluminum Leg Leg Aluminum Leg Wheel Wheel Utility Heat Sink Device Heat Sink Storage Small Storage Unit Processor Terrain Scan Processor Weapon Assault Rifle Ballistic Gun Assault Rifle Launcher Grenade Launcher Special Weapon Welding Torch Build | -11 -10 -9 ------- Run | Yrd Mat Mat Slots Evolved 2 | . . 2 Power . | . . . Propulsion . | . . . Utility . | . . . Weapon 2 | . . 2 Parts Attached 15 | 6 4 5 Power 3 | 1 1 1 Engine 3 | 1 1 1 Core . | . . . Reactor . | . . . Propulsion 3 | 2 . 1 Treads . | . . . Leg 2 | 2 . . Wheel 1 | . . 1 Hover . | . . . Flight . | . . . Utility 5 | 1 2 2 Device 2 | . 1 1 Storage 2 | 1 1 . Processor 1 | . . 1 Hackware . | . . . Protection . | . . . Artifact . | . . . Weapon 4 | 2 1 1 Energy Gun . | . . . Energy Cannon . | . . . Ballistic Gun 2 | 2 . . Ballistic Cannon . | . . . Launcher 1 | . 1 . Special Weapon 1 | . . 1 Impact Weapon . | . . . Slashing Weapon . | . . . Piercing Weapon . | . . . Special Melee Weapon . | . . . Unidentified Prototypes . | . . . Parts Lost 9 | . . 9 Power 1 | . . 1 Propulsion 3 | . . 3 Utility 2 | . . 2 Weapon 3 | . . 3 Highest Loss Streak 6 | . . 6 To Critical Strikes . | . . . Average Slot Usage (%) 83 | . 98 43 Engine 10 | . 13 2 Leg 23 | . 28 12 Device 11 | . 12 7 Storage 13 | . 14 11 Ballistic Gun 11 | . 14 5 Launcher 10 | . 13 1 Peak Build Rating 7 | 6 7 7 Average Rating 5 | 4 6 4 On Entrance 4 | . 6 7 Naked Turns . | . . . Heaviest Build 16 | 13 16 13 Greatest Support 26 | 20 20 26 Greatest Overweight (x) 2 | . . 2 Average Overweight (x) . | . . . Largest Inventory Capacity 8 | 8 8 5 Average Capacity 6 | 6 7 5 Most Carried 3 | . 3 2 Average Carried 1 | . 1 2 Final Capacity 8 | 8 5 5 Final Carried 2 | . 2 2 Class Distribution -------------------- 100% | Mutant Dominant Class ---------------- Mutant | -10/Materials Mutant | -9/Materials Resources | -11 -10 -9 ----------- Run | Yrd Mat Mat Matter Collected 212 | 126 49 37 Remotely . | . . . Salvage Created 150 | . 123 27 Parts 8 | . 7 1 Haulers Intercepted . | . . . Recyclers Shooed 1 | 1 . . Parts Field Recycled . | . . . Retrieved Matter . | . . . Parts Self-Destructed . | . . . Prevented . | . . . Kills | -11 -10 -9 ------- Run | Yrd Mat Mat Combat Hostiles Destroyed 6 | . 5 1 Guns 1 | . 1 . AOE 5 | . 4 1 Classes Destroyed 3 | . 3 . Mechanic 1 | . 1 . Swarmer 1 | . 1 . Grunt 5 | . 4 1 Best Kill Streak 3 | . 3 1 Combat Bots Only 2 | . 2 1 Max Kills in Single Turn 1 | . 1 1 Gunslinging . | . . . Exploded 1 | . 1 1 Melee . | . . . Uniques/NPCs Destroyed . | . . . Combat | -11 -10 -9 -------- Run | Yrd Mat Mat Hostile Shots Fired 117 | . 38 79 Missed 41 | . 17 24 Damage Taken 1012 | . 236 776 Core 421 | . 20 401 Absorbed by Shields . | . . . Core Remaining (%) 96 | 100 92 . Volleys Fired 13 | . 8 5 Largest 2 | . 2 2 Hottest 50 | . 50 50 Shots Fired 22 | . 16 6 Gun 13 | . 8 5 Cannon . | . . . Launcher 9 | . 8 1 Special . | . . . Kinetic 13 | . 8 5 Thermal . | . . . Explosive 9 | . 8 1 Electromagnetic . | . . . Robot Hit Streak 4 | . 4 3 Robot Miss Streak 3 | . 2 3 Penetration Max . | . . . Secondary Targets . | . . . Shots Hit Robots 14 | . 10 4 Core Hits 22 | 1 16 5 Critical Kills . | . . . Critical Parts Destroyed . | . . . Critical Strikes . | . . . Melee Attacks . | . . . Impact . | . . . Slashing . | . . . Piercing . | . . . Sneak Attacks . | . . . Combat Hostiles . | . . . Follow-up Attacks . | . . . Damage Inflicted 620 | 6 492 122 Guns 98 | . 61 37 Cannons . | . . . Explosions 498 | . 431 67 Melee . | . . . Ramming 24 | 6 . 18 Kinetic 98 | . 61 37 Thermal . | . . . Explosive 498 | . 431 67 Electromagnetic . | . . . Impact . | . . . Slashing . | . . . Piercing . | . . . Highest Corruption . | . . . Average Corruption . | . . . Corruption Purged . | . . . Corruption Blocked . | . . . Overload Shots . | . . . Overflow Damage . | . . . Projectiles . | . . . Explosions . | . . . Melee . | . . . Knockbacks . | . . . Impact . | . . . Kinetic . | . . . Secondary . | . . . Self-Inflicted Damage 4 | . . 4 Shots . | . . . Rammed 4 | . . 4 Targets Rammed 14 | 2 . 12 Kicked 10 | 2 . 8 Crushed . | . . . Highest Temperature 6 | . 6 . Average Temperature 3 | . 3 . Received Heat Transfer 360 | . 81 279 Siege Activations . | . . . Robots Corrupted . | . . . Combat Hostiles . | . . . Parts Fried . | . . . Impact Corruptions . | . . . Robots Melted . | . . . Combat Hostiles . | . . . Parts Melted . | . . . Heat Transferred . | . . . Parts Sabotaged . | . . . Parts Stolen . | . . . Parts Stripped . | . . . Power Chain Reactions . | . . . Alert | -11 -10 -9 ------- Run | Yrd Mat Mat Peak Influence 277 | . 277 75 Initial 32 | . . 32 Average 109 | . 160 43 Maximum Alert Level 1 | . 1 . Low Security (%) 73 | 100 57 100 Level 1 26 | . 42 . Level 2 . | . . . Level 3 . | . . . Level 4 . | . . . Level 5 . | . . . High Security . | . . . Max Security . | . . . Squads Dispatched . | . . . Investigation . | . . . Extermination . | . . . Reinforcement . | . . . Assault . | . . . Garrison . | . . . Intercept . | . . . Searches Triggered . | . . . Construction Impeded . | . . . Haulers Reinforced . | . . . Active Scanning Responses . | . . . Cargo Convoy Interrupts . | . . . Stealth | -11 -10 -9 --------- Run | Yrd Mat Mat Distress Signals . | . . . Communications Jammed . | . . . Distress Signals . | . . . Times Spotted 19 | . 12 7 Peak Tracking Total 6 | . 6 5 Tactical Retreats 2 | . 1 1 Traps | -11 -10 -9 ------- Run | Yrd Mat Mat Traps Triggered 1 | . . 1 Indirectly . | . . . Trap Hack Attempts . | . . . Triggered . | . . . Disarmed . | . . . Reprogrammed . | . . . Reused . | . . . Traps Extracted . | . . . Installed . | . . . Triggered . | . . . Machines | -11 -10 -9 ---------- Run | Yrd Mat Mat Machines Disabled 3 | . 3 . Max in Single Turn 1 | . 1 . Machines Repaired . | . . . Machines Dismantled . | . . . Machines Sabotaged . | . . . Overloaded Fab Kills . | . . . Hacking | -11 -10 -9 --------- Run | Yrd Mat Mat Machines Accessed 4 | . 3 1 Terminals 3 | . 2 1 Fabricators . | . . . Repair Stations . | . . . Recycling Units 1 | . 1 . Scanalyzers . | . . . Garrison Access . | . . . Total Hacks 10 | . 8 2 Successful 7 | . 6 1 Failed 3 | . 2 1 Catastrophic 1 | . . 1 Database Lockouts . | . . . Manual . | . . . Terminals 5 | . 3 2 Fabricators . | . . . Repair Stations . | . . . Recycling Units 5 | . 5 . Scanalyzers . | . . . Garrison Access . | . . . Terminal Hacks 3 | . 2 1 Record 1 | . 1 . Level Access Points 1 | . . 1 Recall Reinforcements 1 | . 1 . Fabricator Hacks . | . . . Repair Station Hacks . | . . . Recycling Unit Hacks 4 | . 4 . Recycle Component 2 | . 2 . Process 1 | . 1 . Retrieve Matter 1 | . 1 . Scanalyzer . | . . . Garrison Access Hacks . | . . . Unauthorized Hacks . | . . . Terminals . | . . . Fabricators . | . . . Repair Stations . | . . . Recycling Units . | . . . Scanalyzers . | . . . Garrison Access . | . . . Data Cores Recovered . | . . . Used . | . . . Hacking Detections 3 | . 2 1 Full Trace Events 1 | . 1 . Feedback Events . | . . . Feedback Blocked . | . . . Robot Schematics Acquired . | . . . Robots Built . | . . . Authchips . | . . . Time . | . . . Total Robot Build Rating . | . . . Part Schematics Acquired . | . . . Parts Built . | . . . Authchips . | . . . Time . | . . . Total Part Build Rating . | . . . Parts Repaired . | . . . Time . | . . . Parts Recycled 2 | . 2 . Recycled Matter 73 | . 73 . Retrieved Matter 73 | . 73 . Retrieved Components . | . . . Parts Scanalyzed . | . . . Part Schematics Acquired . | . . . Parts Damaged . | . . . Bothacking | -11 -10 -9 ------------ Run | Yrd Mat Mat Used RIF Installer . | . . . Robots Hacked . | . . . Non-combat . | . . . Combat . | . . . Robot Hacks Applied . | . . . Relay Couplers Released . | . . . Fabnet Peak Effective % . | . . . Robots Rewired . | . . . Allies Hacked . | . . . Hacks Repelled . | . . . Allies | -11 -10 -9 -------- Run | Yrd Mat Mat Total Allies . | . . . Largest Group . | . . . Highest-Rated Group . | . . . Highest-Rated Ally . | . . . Total Orders . | . . . Ally Attacks . | . . . Total Damage . | . . . Kills . | . . . Allies Corrupted . | . . . Allies Melted . | . . . Intel | -11 -10 -9 ------- Run | Yrd Mat Mat Robot Analysis Total . | . . . Derelict Logs Recovered . | . . . Drone Launches . | . . . Drone Recoveries . | . . . Exploration | -11 -10 -9 ------------- Run | Yrd Mat Mat Turns Passed 657 | 94 407 156 Spaces Moved 528 | 72 313 143 Core 83 | 5 . 78 Treads . | . . . Legs 443 | 67 313 63 Wheels 2 | . . 2 Hover . | . . . Flight . | . . . Fastest Speed 50 | 50 120 50 Average Speed 110 | 115 120 86 Slowest Speed 150 | 120 120 150 Overloaded Moves . | . . . Propulsion Burnouts . | . . . Robots Hopped . | . . . Cave-ins Triggered . | . . . Exploration Rate (%) 24 | 3 55 15 Regions Visited 2 Branch Regions . Pre-discovered Areas . | . . . Known Exits Taken . | . . . Unknown Exits Taken 2 | 1 1 . Scrap Searched . | . . . Spaces Dug . | . . . Terrain Destroyed 41 | . 33 8 Melee . | . . . Projectile . | . . . AOE 41 | . 33 8 Terrain Rammed . | . . . Walls Destroyed . | . . . Machines Disabled . | . . . Actions | -11 -10 -9 --------- Run | Yrd Mat Mat Total 572 | 79 328 165 Wait . | . . . Move 526 | 71 312 143 Hop . | . . . Pick Up 1 | . 1 . Fast Attach 15 | 6 4 5 Attach . | . . . Detach 3 | . 3 . Swap . | . . . Drop . | . . . Fire 13 | . 8 5 Melee . | . . . Ram 4 | . . 4 Kick 10 | 2 . 8 Crush . | . . . Escape Stasis . | . . . Rewire . | . . . Trap . | . . . Miscellaneous . | . . . Route ------- -11/Scrapyard -10/Materials -9/Materials (discovered 3 exits: Mat x3) History --------- Turn | Location | Event 10 | -11/Scrapyard | Discovered new exit (range 15) 95 | -11/Scrapyard | Entered Materials 306 | -10/Materials | Build established: Mutant 487 | -10/Materials | Discovered new exit (range 8) 502 | -10/Materials | Entered another Materials area 502 | -9/Materials | Evolved 2 slots: Weapon x2 514 | -9/Materials | Identified exit to Materials 569 | -9/Materials | Lost 3 parts (1p1u1w) 618 | -9/Materials | Core integrity fell below 50% 636 | -9/Materials | Core integrity fell below 20% 658 | -9/Materials | Destroyed by Y-45 Defender with Beam Rifle Last Messages --------------- 00602_ K-01 Serf collects debris. 00603_ Slammed into K-01 Serf. 00604_ Destabilizing: Core damaged (-8). 00605_ K-01 Serf collects debris. 00606_ Connecting with Terminal... 00608_ K-01 Serf collects debris. 00619_ Weight Redist. System destroyed. 00622_ U-05 Engineer lays Concrete. 00627_ U-05 Engineer builds a Wall. 00633_ U-05 Engineer builds a Door. 00633_ U-05 Engineer destroyed. 00633_ Acquired 10 matter. 00634_ Acquired Wheel. 00635_ Critical hit (Burn: +37). 00637_ Acquired Terrain Scan Processor. 00637_ Wheel destroyed. 00639_ Acquired Welding Torch. 00645_ Acquired Ion Engine. 00647_ Acquired 27 matter. 00657_ Welding Torch destroyed. Map ----- +----------------------------------------------------+ | ?????########### ###### #????????????? | | ?????# T + + #????????????? | | ?????# """ # ###### """ """ #????????????? | | ?????# """ # #????# "" """ #????????????? | | ?????# """ ## ##????# " """ #????????????? | | ?????# ## #?????# #????????????? | | ?????# ## #?????# #????????????? | | ?????# ## #?????#/#########????????????? | | ?????# ## #?????# #?#######????????????? | | ?????#####/###### #???### ### #????????????? | | ???????# #### #???# # #????????????? | | ???????# ##### # #????????????? | | ???????# + #????????????? | | ???????# ##### # = #????????????? | | ???????# ########???# # #????????????? | | ???????## ##?????######### ########????????????? | | ????????# #??????# ## #???????????????????? | | ????????# #??????#""" / #???????????????????? | | ????????# #??????#"R ####???????????????????? | | ????????# #??????#""" #??????????????????????? | | ######### #??????# "" #??????????????????????? | | ## ##???### #??????????????????????? | | # ##########+#########+######+##??????? | | # Y k ?????? | | + Y Ya b ?????? | | # ! g @ ?????? | | # ##########+### ########???????????? | | ###+#########! # #??????????????????? | | # #??# "T" # #??????????????????? | | ######## #??# # #??????????????????? | | ???????# #??# #####??????????????????? | | ???????# #??# #??????????????????????? | | ???????# #??# #??????????????????????? | | ???????# #??########??????????????????????? | | ???????# #????????????????????????????????? | | ???????# #????????????????????????????????? | | ???????# #????????????????????????????????? | | ???????##########????????????????????????????????? | | ?????????????????????????????????????????????????? | | ?????????????????????????????????????????????????? | | ?????????????????????????????????????????????????? | | | | | | | | | | | | | | | | | | | +----------------------------------------------------+ Best States ------------- Heat Dissipation 38 Energy Generation 10 Energy Capacity 400 Matter Stores 193 Matter Capacity 300 Sight Range 16 Terrain Scan Density 85 Additional Mass Support 6 Evasion (%) 55 Item Schematics ----------------- None Robot Schematics ------------------ None Fabricated ------------ Nothing Alien Tech Used ----------------- None Achievements -------------- None Challenges ------------ None Game ------ Seed PitchforkMetaReconstructor Manual? 0 Play Time 00:09:55 Cumulative 4.9 hours Start 2024.08.23 @ 11:34:58 End 2024.08.23 @ 11:58:07 Sessions 1 Manual Loads 0 Difficulty Rogue Special Mode None Game No. 13 Rogue 12 Adventurer 1 Explorer 0 Win Type - Total 0 Types 0/0/0/0/0/0/0/0/0 Lore% 1 Gallery% 8 Achievement% 8 Wizard Run 0 Options --------- Layout 2 ASCII 0 Keyboard 1 Movement Arrows Keybinds 0 Fullscreen 1 Font 24/Smallcaps Map View 50x44 Zoom Use 0% Tactical HUD 1 Map Filters NONE Filters NONE Steam 1 RUN: a602283c-1c91-482f-afec-462a82fb2801